fUST/lending_fUST_20250212
["ID","MTS","AMOUNT","RATE_DAILY","PERIOD"]
[352818240,1739345441163,-500.0,0.00014,7]
[352818241,1739345441173,-500.0,0.00014,7]
[352818242,1739345441182,-500.0,0.00014,7]
[352818243,1739345441191,-500.0,0.00014,7]
[352818244,1739345441201,-500.0,0.00014,7]
[352818245,1739345441210,-500.0,0.00014,7]
[352818246,1739345441220,-500.0,0.00014,7]
[352818247,1739345441229,-500.0,0.00014,7]
[352818248,1739345441239,-500.0,0.00014,7]
[352818249,1739345441248,-500.0,0.00014,7]
[352818250,1739345441257,-500.0,0.00014,7]
[352818251,1739345441266,-500.0,0.00014,7]
[352818252,1739345441278,-500.0,0.00014,7]
[352818253,1739345441287,-603.13,0.00014,7]
[352818254,1739345441296,-151.0,0.00014,2]
[352818255,1739345441305,-151.0,0.00014,2]
[352818256,1739345441314,-708.05,0.00014052,2]
[352818257,1739345441323,-457.89803121,0.00014053,2]
[352818258,1739345441331,-674.82,0.00014053,2]
[352818259,1739345441340,-613.38951026,0.00014053,2]
[352818260,1739345441351,-900.73,0.00014053,2]
[352818261,1739345441360,-2856.23,0.00014053,2]
[352818262,1739345441370,-956.0,0.00014053,2]
[352818263,1739345441379,-500.0,0.00014053,2]
[352818264,1739345441389,-943.98,0.00014053,2]
[352818265,1739345441398,-500.0,0.00014053,2]
[352818266,1739345441407,-8992.58,0.00014053,2]
[352818267,1739345441420,-693.79,0.00014053,2]
[352818268,1739345441431,-3839.35,0.00014053,2]
[352818269,1739345441440,-2703.74,0.00014053,2]
[352818270,1739345441450,-500.0,0.00014053,2]
[352818271,1739345441459,-556.98,0.00014053,2]
[352818272,1739345441470,-500.0,0.00014088,2]
[352818273,1739345441480,-3379.41,0.00014088,2]
[352818274,1739345441490,-500.0,0.00014088,2]
[352818275,1739345441501,-196.51823698,0.00014088,2]
[352818276,1739345441510,-708.05,0.00014189,2]
[352818277,1739345441519,-674.82,0.0001419,2]
[352818278,1739345441528,-216.067364,0.0001419,2]
[352818279,1739345441537,-900.73,0.0001419,2]
[352818280,1739345441548,-2856.23,0.0001419,2]
[352818281,1739345441557,-956.0,0.0001419,2]
[352818282,1739345441568,-500.0,0.0001419,2]
[352818283,1739345441580,-943.98,0.0001419,2]
[352818284,1739345441589,-500.0,0.0001419,2]
[352818285,1739345441598,-8992.58,0.0001419,2]
[352818286,1739345441608,-693.79,0.0001419,2]
[352818287,1739345441617,-3839.35,0.0001419,2]
[352818288,1739345441626,-2703.74,0.0001419,2]
[352818289,1739345441635,-500.0,0.0001419,2]
[352818290,1739345441644,-556.98,0.0001419,2]
[352818291,1739345441653,-500.0,0.00014225,2]
[352818292,1739345441662,-3379.41,0.00014225,2]
[352818293,1739345441671,-638.67465305,0.00014225,2]
[352818294,1739345441681,-151.0,0.00014225,2]
[352818295,1739345441690,-151.0,0.00014225,2]
[352818296,1739345441699,-151.0,0.00014225,2]
[352818297,1739345441708,-151.0,0.00014225,2]
[352818298,1739345441717,-152.024997,0.00014225,2]
[352818299,1739345441727,-151.862795,0.00014225,2]
[352818300,1739345441736,-151.0,0.00014225,2]
[352818301,1739345441745,-708.05,0.00014326,2]
[352818302,1739345441755,-158.093449,0.00014327,2]
[352818303,1739345441764,-674.82,0.00014327,2]
[352818304,1739345441776,-900.73,0.00014327,2]
[352818305,1739345441785,-2856.23,0.00014327,2]
[352818306,1739345441794,-956.0,0.00014327,2]
[352818307,1739345441803,-500.0,0.00014327,2]
[352818308,1739345441812,-943.98,0.00014327,2]
[352818309,1739345441821,-500.0,0.00014327,2]
[352818310,1739345441831,-8992.58,0.00014327,2]
[352818311,1739345441840,-693.79,0.00014327,2]
[352818312,1739345441849,-3839.35,0.00014327,2]
[352818313,1739345441858,-2703.74,0.00014327,2]
[352818314,1739345441868,-500.0,0.00014327,2]
[352818315,1739345441877,-556.98,0.00014327,2]
[352818316,1739345441886,-554.7766461,0.00014362,2]
[352818317,1739345441895,-3379.41,0.00014362,2]
[352818318,1739345441905,-708.05,0.00014463,2]
[352818319,1739345441914,-674.82,0.00014464,2]
[352818320,1739345441923,-900.73,0.00014464,2]
[352818321,1739345441933,-2856.23,0.00014464,2]
[352818322,1739345441944,-956.0,0.00014464,2]
[352818323,1739345441954,-500.0,0.00014464,2]
[352818324,1739345441963,-943.98,0.00014464,2]
[352818325,1739345441972,-500.0,0.00014464,2]
[352818326,1739345441981,-8992.58,0.00014464,2]
[352818327,1739345441991,-693.79,0.00014464,2]
[352818328,1739345442000,-3839.35,0.00014464,2]
[352818329,1739345442010,-2703.74,0.00014464,2]
[352818330,1739345442020,-500.0,0.00014464,2]
[352818331,1739345442029,-556.98,0.00014464,2]
[352818332,1739345442039,-151.667511,0.00014499,2]
[352818333,1739345442048,-151.0,0.00014499,2]
[352818334,1739345442057,-151.0,0.00014499,2]
[352818335,1739345442066,-151.075681,0.00014499,2]
[352818336,1739345442075,-3379.41,0.00014499,2]
[352818337,1739345442085,-708.05,0.000146,2]
[352818338,1739345442094,-674.82,0.00014601,2]
[352818339,1739345442103,-900.73,0.00014601,2]
[352818340,1739345442112,-2856.23,0.00014601,2]
[352818341,1739345442121,-956.0,0.00014601,2]
[352818342,1739345442130,-326.48976183,0.00014601,2]
[352818343,1739345442140,-943.98,0.00014601,2]
[352818344,1739345442151,-500.0,0.00014601,2]
[352818345,1739345442161,-8992.58,0.00014601,2]
[352818346,1739345442170,-693.79,0.00014601,2]
[352818347,1739345442179,-3839.35,0.00014601,2]
[352818348,1739345442190,-2703.74,0.00014601,2]
[352818349,1739345442199,-500.0,0.00014601,2]
[352818350,1739345442208,-556.98,0.00014601,2]
[352818351,1739345442217,-151.0,0.00014601,2]
[352818352,1739345442226,-151.0,0.00014601,2]
[352818353,1739345442236,-3379.41,0.00014636,2]
[352818354,1739345442248,-708.05,0.00014737,2]
[352818355,1739345442257,-674.82,0.00014738,2]
[352818356,1739345442266,-900.73,0.00014738,2]
[352818357,1739345442276,-2856.23,0.00014738,2]
[352818358,1739345442285,-956.0,0.00014738,2]
[352818359,1739345442295,-943.98,0.00014738,2]
[352818360,1739345442304,-500.0,0.00014738,2]
[352818361,1739345442313,-8992.58,0.00014738,2]
[352818362,1739345442322,-693.79,0.00014738,2]
[352818363,1739345442331,-3839.35,0.00014738,2]
[352818364,1739345442341,-2703.74,0.00014738,2]
[352818365,1739345442350,-500.0,0.00014738,2]
[352818366,1739345442359,-556.98,0.00014738,2]
[352818367,1739345442368,-3379.41,0.00014773,2]
[352818368,1739345442377,-396.0,0.00014842,2]
[352818369,1739345442386,-1500.0,0.0001485,2]
[352818370,1739345442395,-156.0,0.00014855,2]
[352818371,1739345442404,-156.01,0.00014855,2]
[352818372,1739345442415,-708.05,0.00014874,2]
[352818373,1739345442426,-674.82,0.00014875,2]
[352818374,1739345442436,-900.73,0.00014875,2]
[352818375,1739345442446,-2856.23,0.00014875,2]
[352818376,1739345442455,-956.0,0.00014875,2]
[352818377,1739345442466,-943.98,0.00014875,2]
[352818378,1739345442476,-500.0,0.00014875,2]
[352818379,1739345442485,-8992.58,0.00014875,2]
[352818380,1739345442496,-693.79,0.00014875,2]
[352818381,1739345442505,-3839.35,0.00014875,2]
[352818382,1739345442514,-2703.74,0.00014875,2]
[352818383,1739345442525,-500.0,0.00014875,2]
[352818384,1739345442534,-556.98,0.00014875,2]
[352818385,1739345442543,-3379.41,0.0001491,2]
[352818386,1739345442552,-152.8351,0.00014911,2]
[352818387,1739345442560,-151.0,0.00014911,2]
[352818388,1739345442570,-151.0,0.00014911,2]
[352818389,1739345442579,-500.0,0.00014973,2]
[352818390,1739345442589,-500.0,0.00014973,2]
[352818391,1739345442598,-160.0,0.00015,2]
[352818392,1739345442607,-160.0,0.00015,2]
[352818393,1739345442616,-160.0,0.00015,2]
[352818394,1739345442625,-162.98,0.00015,2]
[352818395,1739345442635,-158.65,0.00015,2]
[352818396,1739345442644,-42513.09949178,0.00015,5]
[352818397,1739345442653,-24373.70280945,0.00015,2]
[352818398,1739345442662,-9052.75768734,0.00015,2]
[352818399,1739345442672,-102098.09658,0.00015,2]
[352818400,1739345442681,-117113.64138248,0.00015,2]
[352818401,1739345442691,-1635.46,0.00015,2]
[352818402,1739345442700,-12717.18960338,0.00015,4]
[352818403,1739345442709,-151.0,0.00015,2]
[352818404,1739345442719,-151.0,0.00015,2]
[352818405,1739345442728,-151.0,0.00015,2]
[352818406,1739345442738,-151.0,0.00015,2]
[352818407,1739345442747,-151.0,0.00015,2]
[352818408,1739345442761,-151.0,0.00015,2]
[352818409,1739345442771,-151.0,0.00015,2]
[352818410,1739345442781,-815.89865181,0.00015,2]
[352818411,1739345442797,-1264.7076417,0.00015,2]
[352818412,1739345442806,-2841.21892972,0.00015,4]
[352818413,1739345442816,-151.0,0.00015,2]
[352818414,1739345442825,-151.0,0.00015,2]
[352818415,1739345442835,-151.775226,0.00015,2]
[352818417,1739345442845,-151.0,0.00015,2]
[352818418,1739345442854,-155.475813,0.00015,2]
[352818419,1739345442865,-206.263594,0.00015,2]
[352818420,1739345442875,-788.37082772,0.00015003,2]
[352818421,1739345442884,-708.05,0.00015011,2]
[352818423,1739345442973,-674.82,0.00015012,2]
[352818425,1739345442983,-900.73,0.00015012,2]
[352818426,1739345442992,-1745.07796786,0.00015012,2]
[352818427,1739345443004,-1111.15203214,0.00015012,2]
[352818428,1739345443013,-956.0,0.00015012,2]
[352818429,1739345443026,-943.98,0.00015012,2]
[352818430,1739345443035,-511.07043478,0.00015012,2]
[352818431,1739345443045,-8992.58,0.00015012,2]
[352818432,1739345443054,-693.79,0.00015012,2]
[352818433,1739345443063,-3839.35,0.00015012,2]
[352818434,1739345443073,-2703.74,0.00015012,2]
[352818435,1739345443082,-500.0,0.00015012,2]
[352818437,1739345443091,-556.98,0.00015012,2]
[352818439,1739345443101,-150.24,0.0001502,2]
[352818440,1739345443111,-160.13895233,0.0001502,2]
[352818441,1739345443120,-150.69912701,0.0001502,2]
[352818442,1739345443129,-508.0,0.0001502,2]
[352818444,1739345443139,-500.0,0.0001502,2]
[352818446,1739345443148,-150.24,0.0001502,2]
[352818447,1739345443157,-500.0,0.0001502,2]
[352818448,1739345443167,-150.24,0.0001502,2]
[352818449,1739345443176,-151.0,0.00015047,2]
[352818450,1739345443185,-151.0,0.00015047,2]
[352818452,1739345443195,-3379.41,0.00015047,2]
[352818453,1739345443205,-219.760695,0.00015048,2]
[352818454,1739345443215,-219.760695,0.00015048,2]
[352818455,1739345443224,-151.0,0.00015048,2]
[352818456,1739345443233,-151.0,0.00015048,2]
[352818457,1739345443243,-193.632722,0.00015048,2]
[352818459,1739345443252,-151.0,0.00015048,2]
[352818460,1739345443262,-166.0,0.00015068,2]
[352818462,1739345443272,-153.0,0.00015121,2]
[352818463,1739345443282,-153.0,0.00015121,2]
[352818465,1739345443291,-153.0,0.00015121,2]
[352818467,1739345443300,-153.0,0.00015121,2]
[352818468,1739345443309,-153.0,0.00015121,2]
[352818470,1739345443318,-153.0,0.00015121,2]
[352818472,1739345443328,-153.0,0.00015121,2]
[352818474,1739345443337,-153.0,0.00015121,2]
[352818475,1739345443346,-153.0,0.00015121,2]
[352818476,1739345443355,-153.0,0.00015121,2]
[352818478,1739345443364,-153.0,0.00015121,2]
[352818480,1739345443374,-153.0,0.00015121,2]
[352818481,1739345443383,-153.0,0.00015121,2]
[352818483,1739345443392,-272.0,0.00015122,2]
[352818485,1739345443402,-272.0,0.00015122,2]
[352818487,1739345443411,-272.0,0.00015122,2]
[352818489,1739345443424,-272.0,0.00015122,2]
[352818491,1739345443434,-272.0,0.00015122,2]
[352818492,1739345443443,-272.0,0.00015122,2]
[352818493,1739345443452,-272.0,0.00015122,2]
[352818494,1739345443462,-272.0,0.00015122,2]
[352818495,1739345443472,-272.0,0.00015122,2]
[352818496,1739345443481,-272.0,0.00015122,2]
[352818497,1739345443491,-272.0,0.00015122,2]
[352818498,1739345443501,-272.0,0.00015122,2]
[352818499,1739345443512,-272.0,0.00015122,2]
[352818500,1739345443522,-272.0,0.00015122,2]
[352818501,1739345443531,-153.0,0.00015126,2]
[352818502,1739345443540,-153.0,0.00015126,2]
[352818503,1739345443549,-153.0,0.00015126,2]
[352818504,1739345443559,-153.0,0.00015126,2]
[352818505,1739345443568,-153.0,0.00015126,2]
[352818506,1739345443578,-153.0,0.00015126,2]
[352818507,1739345443587,-153.0,0.00015126,2]
[352818508,1739345443596,-153.0,0.00015126,2]
[352818509,1739345443606,-153.0,0.00015126,2]
[352818510,1739345443615,-153.0,0.00015126,2]
[352818511,1739345443623,-153.0,0.00015126,2]
[352818512,1739345443633,-153.0,0.00015126,2]
[352818513,1739345443642,-153.0,0.00015126,2]
[352818514,1739345443651,-272.0,0.00015127,2]
[352818515,1739345443661,-272.0,0.00015127,2]
[352818516,1739345443670,-272.0,0.00015127,2]
[352818517,1739345443679,-272.0,0.00015127,2]
[352818518,1739345443689,-272.0,0.00015127,2]
[352818519,1739345443699,-272.0,0.00015127,2]
[352818520,1739345443708,-272.0,0.00015127,2]
[352818521,1739345443718,-272.0,0.00015127,2]
[352818522,1739345443727,-272.0,0.00015127,2]
[352818523,1739345443736,-272.0,0.00015127,2]
[352818524,1739345443745,-272.0,0.00015127,2]
[352818525,1739345443754,-272.0,0.00015127,2]
[352818526,1739345443764,-272.0,0.00015127,2]
[352818527,1739345443775,-272.0,0.00015127,2]
[352818528,1739345443784,-153.0,0.00015128,2]
[352818529,1739345443793,-153.0,0.00015128,2]
[352818530,1739345443803,-153.0,0.00015128,2]
[352818531,1739345443812,-153.0,0.00015128,2]
[352818532,1739345443821,-153.0,0.00015128,2]
[352818533,1739345443831,-153.0,0.00015128,2]
[352818534,1739345443840,-153.0,0.00015128,2]
[352818535,1739345443849,-153.0,0.00015128,2]
[352818536,1739345443858,-153.0,0.00015128,2]
[352818537,1739345443867,-153.0,0.00015128,2]
[352818538,1739345443877,-153.0,0.00015128,2]
[352818539,1739345443887,-153.0,0.00015128,2]
[352818540,1739345443895,-153.0,0.00015128,2]
[352818541,1739345443905,-272.0,0.00015129,2]
[352818542,1739345443914,-272.0,0.00015129,2]
[352818543,1739345443924,-272.0,0.00015129,2]
[352818544,1739345443933,-272.0,0.00015129,2]
[352818545,1739345443943,-272.0,0.00015129,2]
[352818546,1739345443953,-272.0,0.00015129,2]
[352818547,1739345443963,-272.0,0.00015129,2]
[352818548,1739345443973,-272.0,0.00015129,2]
[352818549,1739345443982,-272.0,0.00015129,2]
[352818550,1739345443992,-272.0,0.00015129,2]
[352818551,1739345444001,-272.0,0.00015129,2]
[352818552,1739345444011,-272.0,0.00015129,2]
[352818553,1739345444022,-272.0,0.00015129,2]
[352818554,1739345444032,-272.0,0.00015129,2]
[352818555,1739345444042,-500.0,0.00015137,2]
[352818556,1739345444051,-500.0,0.00015137,2]
[352818557,1739345444061,-500.0,0.00015137,2]
[352818558,1739345444071,-249.59241286,0.00015137,2]
[352818559,1739345444080,-708.05,0.00015148,2]
[352818560,1739345444090,-674.84,0.00015149,2]
[352818561,1739345444100,-900.73,0.00015149,2]
[352818562,1739345444110,-2856.34676803,0.00015149,2]
[352818563,1739345444120,-956.2067073,0.00015149,2]
[352818564,1739345444130,-944.20933162,0.00015149,2]
[352818565,1739345444140,-8992.58,0.00015149,2]
[352818566,1739345444149,-693.86927919,0.00015149,2]
[352818567,1739345444159,-3839.35,0.00015149,2]
[352818568,1739345444169,-2703.76141158,0.00015149,2]
[352818569,1739345444179,-228.02240842,0.00015149,2]
[352818570,1739345444189,-557.0174304,0.00015149,2]
[352818571,1739345444198,-3379.41,0.00015184,2]
[352818572,1739345444208,-306.4532908,0.0001526,2]
[352818573,1739345444217,-155.8142976,0.0001526,2]
[352818574,1739345444227,-313.3501289,0.0001526,2]
[352818575,1739345444237,-428.138784,0.0001526,2]
[352818576,1739345444247,-708.11310865,0.00015285,2]
[352818577,1739345444256,-225.34538839,0.00015286,2]
[352818578,1739345445140,-675.57549507,0.00015286,2]
[352818579,1739345445150,-8992.76213448,0.00015286,2]
[352818580,1739345445159,-2890.69671809,0.00015286,2]
[352818581,1739345445309,-504.20957308,0.00015286,2]
[352818592,1739345446607,-500.0,0.00012135,2]
[352818593,1739345446618,-1408.08,0.00012135,2]
[352818594,1739345446627,-332.7219792,0.00013403,2]
[352818595,1739345446636,-192.9980208,0.00013523,2]
[352818605,1739345679590,160.1,0.00010959,2]
[352818606,1739345689994,804.66,0.00010959,2]
[352818607,1739345700489,670.55,0.00010959,2]
[352818608,1739345710986,558.79,0.00010959,2]
[352818609,1739345721491,465.66,0.00010959,2]
[352818612,1739345731972,388.05,0.00010959,2]
[352818613,1739345742469,323.38,0.00010959,2]
[352818614,1739345753057,269.48,0.00010959,2]
[352818615,1739345763539,224.57,0.00010959,2]
[352818616,1739345774013,187.14,0.00010959,2]
[352818617,1739345784481,155.95,0.00010959,2]
[352818618,1739345788936,400.0,0.00010685,2]
[352818619,1739345794953,779.76,0.00010959,2]
[352818621,1739346354157,-150.35998969,0.00011369,4]
[352818622,1739346354178,-260.27039467,0.00011877,2]
[352818623,1739346427089,-857.09688845,0.00011877,2]
[352818624,1739346445130,-1527.92869203,0.00011877,2]
[352818625,1739346451094,-1146.68765837,0.00011877,2]
[352818626,1739346451115,-2051.0,0.00011997,2]
[352818627,1739346451137,-181.40423739,0.00012034,2]
[352818628,1739346451157,-5225.53099535,0.00012121,2]
[352818629,1739346451187,-2100.31745969,0.00012121,2]
[352818630,1739346451208,-300.0,0.00012121,2]
[352818631,1739346451229,-181.40423736,0.00012125,2]
[352818632,1739346451251,-246.96834135,0.00012131,2]
[352818633,1739346451272,-500.0,0.00012131,2]
[352818634,1739346451294,-500.0,0.00012131,2]
[352818635,1739346451317,-965.05,0.00012131,2]
[352818636,1739346451338,-500.0,0.00012131,2]
[352818637,1739346451358,-500.0,0.00012131,2]
[352818638,1739346451378,-500.0,0.00012131,2]
[352818639,1739346451399,-424.53784249,0.00012131,2]
[352818640,1739346451420,-500.0,0.00012131,2]
[352818641,1739346451442,-504.55046056,0.00012131,2]
[352818642,1739346451463,-500.0,0.00012131,2]
[352818643,1739346451484,-500.0,0.00012131,2]
[352818644,1739346451505,-500.0,0.00012131,2]
[352818645,1739346451527,-507.54005291,0.00012131,2]
[352818646,1739346451548,-547.87103451,0.00012131,2]
[352818647,1739346451569,-595.65875474,0.00012131,2]
[352818648,1739346451589,-500.0,0.00012131,2]
[352818649,1739346451610,-500.0,0.00012131,2]
[352818650,1739346451630,-500.0,0.00012131,2]
[352818651,1739346451651,-501.19181129,0.00012131,2]
[352818652,1739346451671,-500.0,0.00012131,2]
[352818653,1739346451696,-500.0,0.00012131,2]
[352818654,1739346451717,-501.62185845,0.00012131,2]
[352818655,1739346451738,-500.0,0.00012131,2]
[352818656,1739346451760,-500.0,0.00012131,2]
[352818657,1739346451786,-515.71146168,0.00012131,2]
[352818658,1739346451807,-500.0,0.00012131,2]
[352818659,1739346451827,-500.0,0.00012131,2]
[352818660,1739346451848,-500.0,0.00012131,2]
[352818661,1739346451870,-500.0,0.00012131,2]
[352818662,1739346451891,-500.0,0.00012131,2]
[352818663,1739346451911,-272.32219955,0.00012131,2]
[352818664,1739346451937,-510.15468633,0.00012131,2]
[352818665,1739346451958,-500.0,0.00012131,2]
[352818666,1739346451980,-500.0,0.00012131,2]
[352818667,1739346452001,-500.0,0.00012131,2]
[352818668,1739346452026,-500.0,0.00012131,2]
[352818669,1739346452052,-500.0,0.00012131,2]
[352818670,1739346452073,-500.0,0.00012131,2]
[352818671,1739346452095,-500.0,0.00012131,2]
[352818672,1739346452116,-500.0,0.00012131,2]
[352818673,1739346452138,-500.0,0.00012131,2]
[352818674,1739346452160,-500.0,0.00012131,2]
[352818675,1739346452180,-500.0,0.00012131,2]
[352818676,1739346452206,-500.0,0.00012131,2]
[352818677,1739346452229,-1747.57,0.00012131,2]
[352818678,1739346452251,-500.0,0.00012131,2]
[352818679,1739346452273,-500.0,0.00012131,2]
[352818680,1739346452294,-500.0,0.00012131,2]
[352818681,1739346452315,-500.0,0.00012131,2]
[352818682,1739346452336,-500.0,0.00012131,2]
[352818683,1739346452358,-500.0,0.00012131,2]
[352818684,1739346452380,-500.0,0.00012131,2]
[352818685,1739346452401,-500.0,0.00012131,2]
[352818686,1739346452423,-500.0,0.00012131,2]
[352818687,1739346452449,-500.0,0.00012131,2]
[352818688,1739346452470,-501.9465053,0.00012131,2]
[352818689,1739346452490,-500.0,0.00012131,2]
[352818690,1739346452510,-500.0,0.00012131,2]
[352818691,1739346452531,-500.0,0.00012131,2]
[352818692,1739346452552,-500.0,0.00012131,2]
[352818693,1739346452572,-504.81806071,0.00012131,2]
[352818694,1739346452593,-500.0,0.00012131,2]
[352818695,1739346452615,-500.0,0.00012131,2]
[352818696,1739346452636,-206.32632135,0.00012131,2]
[352818697,1739346452656,-500.60980057,0.00012131,2]
[352818698,1739346452677,-500.77629688,0.00012131,2]
[352818699,1739346452700,-312.55211594,0.00012131,2]
[352818700,1739346452721,-500.63750474,0.00012131,2]
[352818701,1739346452742,-500.0,0.00012131,2]
[352818702,1739346452765,-500.0,0.00012131,2]
[352818703,1739346452788,-501.04806849,0.00012131,2]
[352818704,1739346452809,-500.0,0.00012131,2]
[352818705,1739346452922,-500.0,0.00012131,2]
[352818706,1739346452944,-544.34603648,0.00012131,2]
[352818707,1739346452967,-500.0,0.00012131,2]
[352818708,1739346452990,-500.0,0.00012131,2]
[352818709,1739346453013,-500.0,0.00012131,2]
[352818710,1739346453035,-500.0,0.00012131,2]
[352818711,1739346453057,-174.99351538,0.00012131,2]
[352818712,1739346453080,-500.0,0.00012131,2]
[352818713,1739346453101,-500.0,0.00012131,2]
[352818714,1739346453123,-500.0,0.00012131,2]
[352818715,1739346453146,-500.0,0.00012131,2]
[352818716,1739346453170,-500.0,0.00012131,2]
[352818717,1739346453197,-500.0,0.00012131,2]
[352818718,1739346453221,-646.32423698,0.00012131,2]
[352818719,1739346453244,-500.0,0.00012131,2]
[352818720,1739346453268,-300.94314428,0.00012131,2]
[352818721,1739346453289,-250.04220008,0.00012132,2]
[352818722,1739346453310,-500.0,0.00012132,2]
[352818723,1739346453332,-500.50626511,0.00012132,2]
[352818724,1739346453355,-500.0,0.00012132,2]
[352818725,1739346453376,-523.17268679,0.00012132,2]
[352818726,1739346453397,-500.0,0.00012132,2]
[352818727,1739346453420,-500.0,0.00012132,2]
[352818728,1739346453446,-500.0,0.00012132,2]
[352818729,1739346453468,-500.0,0.00012132,2]
[352818730,1739346453494,-500.0,0.00012132,2]
[352818731,1739346453521,-500.0,0.00012132,2]
[352818732,1739346453543,-500.0,0.00012132,2]
[352818733,1739346453566,-500.0,0.00012132,2]
[352818734,1739346453591,-500.0,0.00012132,2]
[352818735,1739346453618,-500.0,0.00012132,2]
[352818736,1739346453641,-500.0,0.00012132,2]
[352818737,1739346453665,-500.0,0.00012132,2]
[352818738,1739346453691,-500.0,0.00012132,2]
[352818739,1739346453713,-503.20934248,0.00012132,2]
[352818740,1739346453736,-500.0,0.00012132,2]
[352818741,1739346453760,-500.0,0.00012132,2]
[352818742,1739346453785,-500.0,0.00012132,2]
[352818743,1739346453808,-500.0,0.00012132,2]
[352818744,1739346453831,-500.0,0.00012132,2]
[352818745,1739346453856,-500.0,0.00012132,2]
[352818746,1739346453879,-500.0,0.00012132,2]
[352818747,1739346453901,-500.0,0.00012132,2]
[352818748,1739346453925,-508.59585944,0.00012132,2]
[352818749,1739346453948,-500.0,0.00012132,2]
[352818750,1739346453970,-500.0,0.00012132,2]
[352818751,1739346453991,-500.0,0.00012132,2]
[352818752,1739346454014,-500.0,0.00012132,2]
[352818753,1739346454036,-500.0,0.00012132,2]
[352818754,1739346454058,-500.0,0.00012132,2]
[352818755,1739346454080,-500.0,0.00012132,2]
[352818756,1739346454101,-500.0,0.00012132,2]
[352818757,1739346454122,-500.0,0.00012132,2]
[352818758,1739346454144,-500.0,0.00012132,2]
[352818759,1739346454164,-500.0,0.00012132,2]
[352818760,1739346454187,-500.0,0.00012132,2]
[352818761,1739346454208,-505.99980927,0.00012132,2]
[352818762,1739346454232,-500.0,0.00012132,2]
[352818763,1739346454254,-500.0,0.00012132,2]
[352818764,1739346454277,-500.0,0.00012132,2]
[352818765,1739346454302,-959.17,0.00012132,2]
[352818766,1739346454324,-500.0,0.00012132,2]
[352818767,1739346454345,-500.0,0.00012132,2]
[352818768,1739346454369,-1873.87,0.00012132,2]
[352818769,1739346454392,-500.0,0.00012132,2]
[352818770,1739346454413,-500.0,0.00012132,2]
[352818771,1739346454436,-500.0,0.00012132,2]
[352818772,1739346454459,-500.0,0.00012132,2]
[352818773,1739346454482,-500.0,0.00012132,2]
[352818774,1739346454505,-500.0,0.00012132,2]
[352818775,1739346454530,-500.0,0.00012132,2]
[352818776,1739346454553,-500.0,0.00012132,2]
[352818777,1739346454578,-500.0,0.00012132,2]
[352818778,1739346454601,-500.0,0.00012132,2]
[352818779,1739346454626,-500.0,0.00012132,2]
[352818780,1739346454653,-1372.29,0.00012132,2]
[352818781,1739346454677,-500.0,0.00012132,2]
[352818782,1739346454708,-500.0,0.00012132,2]
[352818783,1739346454734,-686.37,0.00012132,2]